bitfinex/quotes_SOLUSD_20240612
["timestamp","ask_amount","ask_price","bid_price","bid_amount"]
[1718154072490,8.6668,148.44,148.39,2.4933]
[1718154072893,2.4927,148.43,148.38,2.4935]
[1718154073277,9.1473,148.43,148.38,2.4935]
[1718154073893,2.4929,148.42,148.37,2.4937]
[1718154074282,2.493,148.41,148.37,2.4937]
[1718154074680,2.493,148.41,148.36,2.4938]
[1718154075784,25.353,148.42,148.37,2.4937]
[1718154076181,32.013,148.42,148.37,2.4937]
[1718154076506,32.013,148.42,148.35,2.494]
[1718154076507,9.1534,148.4,148.35,2.494]
[1718154076679,6.66,148.4,148.35,2.494]
[1718154077075,6.66,148.4,148.36,2.4939]
[1718154077307,29.52,148.42,148.34,9.9768]
[1718154077480,29.52,148.42,148.38,2.4934]
[1718154077982,32.0129,148.42,148.37,2.4936]
[1718154078880,23.742,148.48,148.39,0.17]
[1718154079189,2.4924,148.45,148.4,2.4931]
[1718154079501,2.4923,148.46,148.41,2.493]
[1718154080416,39.126,148.48,148.41,0.17]
[1718154080603,18.758,148.48,148.43,2.4927]
[1718154080786,2.4922,148.47,148.42,2.4928]
[1718154080988,2.4922,148.46,148.41,33.0029]
[1718154081204,28.7258,148.48,148.41,30.0]
[1718154081488,22.86,148.46,148.41,30.0]
[1718154081688,2.4925,148.44,148.41,30.0]
[1718154081985,22.86,148.46,148.41,30.0]
[1718154082314,2.4929,148.42,148.41,30.0]
[1718154082818,2.4929,148.42,148.36,2.4938]
[1718154083020,2.4929,148.42,148.37,32.4937]
[1718154083399,2.4928,148.43,148.38,2.4935]
[1718154085116,2.4928,148.43,148.39,2.4934]
[1718154085312,6.1756,148.44,148.37,30.0]
[1718154085620,8.8549,148.46,148.41,2.493]
[1718154086718,2.4924,148.45,148.41,2.493]
[1718154087023,2.4924,148.45,148.4,2.4931]
[1718154087535,2.4924,148.45,148.41,2.493]
[1718154088521,2.4924,148.45,148.4,2.4931]
[1718154089527,2.4924,148.45,148.38,5.327]
[1718154089528,8.855,148.46,148.41,2.493]
[1718154089933,2.4923,148.46,148.41,2.493]
[1718154090114,18.7579,148.48,148.43,2.4927]
[1718154091523,2.4921,148.47,148.43,2.4927]
[1718154091725,2.4918,148.49,148.41,0.17]
[1718154091938,2.4919,148.48,148.43,2.4926]
[1718154092109,2.4919,148.48,148.44,2.4925]
[1718154092305,2.4917,148.49,148.43,0.17]
[1718154092510,2.4915,148.51,148.43,0.68]
[1718154092710,2.4916,148.5,148.45,2.4923]
[1718154093427,2.4916,148.5,148.45,8.7439]
[1718154093803,287.7068,148.53,148.46,2.6621]
[1718154093804,2.4914,148.51,148.46,2.6621]
[1718154093999,2.4913,148.52,148.47,2.492]
[1718154094716,281.36,148.53,148.46,0.17]
[1718154094717,286.3424,148.53,148.46,0.17]
[1718154094904,2.4916,148.5,148.45,3.0023]
[1718154095936,2.4914,148.51,148.46,2.4922]
[1718154098251,2.4916,148.5,148.45,9.1974]
[1718154098533,2.4916,148.5,148.45,2.4924]
[1718154098768,2.4922,148.47,148.42,2.4928]
[1718154098922,4.9839,148.48,148.38,46.7937]
[1718154099309,2.4921,148.47,148.42,2.4929]
[1718154100545,22.86,148.49,148.44,2.4925]
[1718154100737,25.3518,148.49,148.44,2.4925]
[1718154101351,2.4914,148.51,148.46,2.4921]
[1718154101510,60.4053,148.54,148.46,2.4921]
[1718154101710,2.4913,148.52,148.47,2.492]
[1718154102877,2.4914,148.51,148.47,2.492]
[1718154103540,2.4913,148.52,148.47,2.492]
[1718154103728,260.9911,148.53,148.48,2.4918]
[1718154104532,2.4912,148.52,148.48,2.4918]
[1718154105143,2.4912,148.52,148.47,2.4919]
[1718154105452,2.4912,148.52,148.47,8.8381]
[1718154107158,2.4914,148.51,148.47,8.8381]
[1718154108046,22.86,148.54,148.48,8.9263]
[1718154108251,22.86,148.54,148.48,6.4345]
[1718154109165,2.4911,148.53,148.48,6.4345]
[1718154109341,2.491,148.54,148.49,2.4916]
[1718154109649,2.491,148.53,148.48,8.9263]
[1718154110165,2.4914,148.51,148.48,6.4345]
[1718154110352,17.4365,148.54,148.47,8.5552]
[1718154110353,2.4913,148.52,148.47,8.5552]
[1718154112670,2.4913,148.52,148.48,2.4918]
[1718154113375,0.8418073,148.55,148.5,2.4915]
[1718154113548,3.3326073,148.55,148.5,2.4915]
[1718154117173,3.3326073,148.55,148.5,8.7645]
[1718154119774,2.4909,148.54,148.5,8.7645]
[1718154120273,2.4909,148.54,148.5,6.273]
[1718154121082,2.4909,148.54,148.5,8.7645]
[1718154123179,2.4909,148.54,148.49,2.4916]
[1718154123355,2.4911,148.53,148.48,22.8718]
[1718154123672,2.4911,148.53,148.49,2.6617]
[1718154124149,0.8418073,148.55,148.46,6.498]
[1718154124466,4.9825,148.52,148.45,17.6566]
[1718154124875,2.4915,148.5,148.45,17.6566]
[1718154126368,2.4915,148.5,148.45,2.4922]
[1718154126669,2.4919,148.48,148.43,2.4926]
[1718154127055,2.4921,148.47,148.42,24.7853]
[1718154127256,2.4923,148.46,148.42,16.0166]
[1718154127459,2.4923,148.46,148.41,2.4929]
[1718154127668,2.4923,148.46,148.42,2.4929]
[1718154128577,22.86,148.48,148.41,2.493]
[1718154128578,2.4924,148.45,148.41,2.493]
[1718154128783,2.4924,148.45,148.4,2.4931]
[1718154129274,27.8441,148.48,148.4,2.4931]
[1718154129771,2.4925,148.45,148.41,2.493]
[1718154130762,2.4923,148.46,148.41,2.493]
[1718154131379,25.3517,148.49,148.41,0.17]
[1718154131580,2.4916,148.5,148.45,2.4923]
[1718154131753,2.4916,148.5,148.46,2.4922]
[1718154131953,2.4916,148.5,148.45,2.4923]
[1718154132760,25.3514,148.51,148.46,2.4921]
[1718154132956,22.86,148.51,148.44,9.9701]
[1718154133174,18.7124,148.52,148.45,4.9848]
[1718154133355,18.7124,148.52,148.47,2.492]
[1718154135279,2.4914,148.51,148.47,2.492]
[1718154135996,18.7124,148.52,148.45,25.1948]
[1718154136165,2.4911,148.53,148.48,2.4918]
[1718154136365,2.4911,148.53,148.49,2.4917]
[1718154138878,2.4911,148.53,148.48,2.4918]
[1718154139083,2.4911,148.53,148.48,9.1443]
[1718154140374,2.4912,148.52,148.48,9.1443]
[1718154140790,2.4912,148.52,148.48,2.4918]
[1718154141388,34.05265586,148.55,148.48,2.4918]
[1718154141389,2.4911,148.53,148.48,2.4918]
[1718154141590,2.4915,148.51,148.46,2.4921]
[1718154142086,4.9828,148.51,148.44,2.4925]
[1718154142389,2.4917,148.49,148.44,2.4925]
[1718154142589,2.4917,148.49,148.45,2.4924]
[1718154145489,2.4916,148.5,148.46,2.4922]
[1718154151877,2.4917,148.49,148.45,2.4923]
[1718154153092,30.3337,148.52,148.43,4.9854]
[1718154153310,2.4919,148.48,148.44,2.4925]
[1718154155397,2.4925,148.45,148.41,2.493]
[1718154155599,2.4925,148.44,148.4,2.4932]
[1718154155796,2.4927,148.43,148.39,2.4933]
[1718154156101,2.4927,148.43,148.4,2.4932]
[1718154156310,2.4926,148.44,148.4,2.4932]
[1718154156701,2.4925,148.45,148.41,2.493]
[1718154160800,21.4633,148.5,148.41,6.3586]
[1718154161001,2.492,148.48,148.44,2.4924]
[1718154162527,44.3233,148.5,148.44,2.4924]
[1718154162698,2.492,148.47,148.44,2.4924]
[1718154163196,2.492,148.47,148.43,2.4926]
[1718154165618,2.4922,148.46,148.43,2.4926]
[1718154166120,2.492,148.48,148.44,2.4924]
[1718154166312,2.492,148.48,148.45,8.7589]
[1718154166502,2.4917,148.49,148.45,8.7589]
[1718154168002,2.4917,148.49,148.45,6.2665]
[1718154169023,2.4919,148.48,148.45,6.2665]
[1718154169720,2.4922,148.47,148.43,15.5191]
[1718154169917,4.9835,148.49,148.43,15.5191]
[1718154170231,2.4923,148.46,148.43,15.5191]
[1718154170602,2.4923,148.46,148.43,21.8266]
[1718154170921,7.63,148.45,148.43,24.3193]
[1718154172124,2.4919,148.48,148.44,2.4925]
[1718154172425,7.63,148.46,148.44,2.4925]
[1718154173900,11.12919071,148.52,148.43,21.8266]
[1718154174127,10.1225,148.44,148.41,6.4225]
[1718154174306,7.63,148.44,148.41,8.9155]
[1718154174815,7.63,148.44,148.42,2.4929]
[1718154175523,7.63,148.43,148.39,16.5731]
[1718154175826,7.63,148.41,148.4,2.4931]
[1718154180032,7.63,148.41,148.39,16.5731]
[1718154180220,7.63,148.4,148.39,19.0665]
[1718154181356,7.63,148.4,148.39,24.0533]
[1718154183050,7.63,148.41,148.4,2.4932]
[1718154183345,7.63,148.41,148.37,21.1156]
[1718154183524,5.5049299,148.46,148.37,21.1156]
[1718154183525,16.2973,148.45,148.39,2.4933]
[1718154183733,7.63,148.4,148.39,2.4933]
[1718154187556,2.4926,148.44,148.4,2.4931]
[1718154187737,5.5049299,148.46,148.38,20.21]
[1718154187944,7.63,148.42,148.41,2.493]
[1718154190242,2.492,148.48,148.44,2.4925]
[1718154190457,7.63,148.45,148.44,2.4925]
[1718154190630,7.63,148.45,148.42,4.9858]
[1718154190827,7.63,148.45,148.43,2.4926]
[1718154191067,7.63,148.45,148.42,2.4928]
[1718154191228,7.63,148.44,148.42,2.4928]
[1718154191733,2.4923,148.46,148.42,2.4928]
[1718154191934,7.63,148.43,148.42,2.4928]
[1718154192245,7.63,148.43,148.4,2.4932]
[1718154192546,7.63,148.41,148.4,2.4932]
[1718154193265,7.63,148.41,148.37,7.4812]
[1718154193266,7.63,148.41,148.39,2.4933]
[1718154193444,2.4927,148.43,148.39,2.4933]
[1718154193646,2.4926,148.44,148.4,2.4932]
[1718154193966,7.63,148.41,148.35,83.2566]
[1718154194138,7.63,148.39,148.37,2.4937]
[1718154194645,7.63,148.39,148.38,2.4935]
[1718154195367,7.63,148.39,148.36,6.5546]
[1718154195538,7.63,148.38,148.37,2.4936]
[1718154195972,7.63,148.38,148.36,2.4938]
[1718154196259,7.63,148.37,148.36,2.4938]
[1718154196565,7.63,148.37,148.36,2.4939]
[1718154198274,2.4931,148.41,148.37,2.4937]
[1718154198442,7.63,148.38,148.37,2.4937]
[1718154198870,2.4931,148.41,148.37,2.4937]
[1718154199372,2.4932,148.4,148.37,2.4937]
[1718154199664,2.4932,148.4,148.36,2.4938]
[1718154200868,2.4934,148.39,148.35,2.494]
[1718154205080,15.4175,148.42,148.32,60.87]
[1718154205279,2.4938,148.37,148.34,2.4942]
[1718154205776,2.4936,148.38,148.34,2.4942]
[1718154207998,4.9867,148.4,148.34,2.4942]
[1718154208206,2.4936,148.38,148.34,2.4942]
[1718154214484,2.4936,148.38,148.35,2.494]
[1718154216416,22.9,148.41,148.36,2.4939]
[1718154216620,2.4933,148.4,148.36,2.4939]
[1718154217110,2.4934,148.39,148.36,2.4939]
[1718154217488,2.4934,148.39,148.35,2.494]
[1718154218608,2.4935,148.38,148.35,2.494]
[1718154218828,2.4935,148.38,148.34,2.4941]
[1718154218986,7.64,148.36,148.34,2.4941]
[1718154219913,7.64,148.36,148.35,2.494]
[1718154222897,7.64,148.36,148.34,8.9827]
[1718154227529,7.64,148.37,148.34,6.4886]
[1718154227829,7.64,148.37,148.34,8.9827]
[1718154229315,7.64,148.36,148.33,2.4943]
[1718154229512,10.1339,148.36,148.33,2.4943]
[1718154230015,7.64,148.36,148.33,2.4943]
[1718154230406,7.64,148.35,148.33,2.4943]
[1718154230904,7.64,148.35,148.34,2.4942]
[1718154238235,16.0756,148.39,148.28,67.1784]
[1718154238456,7.64,148.33,148.29,26.7184]
[1718154238746,7.64,148.33,148.31,2.4946]
[1718154238910,2.494,148.36,148.32,2.4946]
[1718154239116,11.0889,148.39,148.32,2.4944]
[1718154239320,7.64,148.33,148.31,2.4947]
[1718154239544,7.64,148.32,148.31,2.4947]
[1718154240548,6.1019,148.39,148.34,2.4941]
[1718154240717,7.64,148.35,148.32,2.4944]
[1718154241034,7.64,148.33,148.32,2.4944]
[1718154241737,2.4938,148.37,148.33,2.4944]
[1718154242050,59.6457778,148.4,148.33,2.4944]
[1718154242256,5.4758778,148.4,148.32,4.989]
[1718154242429,5.4758778,148.4,148.32,11.6263]
[1718154242430,7.64,148.36,148.32,11.6263]
[1718154242751,7.64,148.36,148.34,2.4941]
[1718154242950,7.64,148.35,148.34,2.4941]
[1718154243549,30.56,148.4,148.33,4.9888]
[1718154243550,7.64,148.36,148.33,4.9888]
[1718154243722,7.64,148.36,148.33,5.34010801]
[1718154244045,7.64,148.36,148.34,2.4942]
[1718154244620,2.4935,148.39,148.35,2.494]
[1718154244821,7.64,148.36,148.35,2.494]
[1718154246353,7.64,148.36,148.32,19.11]
[1718154246354,7.64,148.36,148.34,2.4941]
[1718154247151,4.17382613,148.41,148.32,90.7402]
[1718154247449,2.4927,148.44,148.4,2.4931]
[1718154247626,7.64,148.41,148.4,2.4931]
[1718154248024,7.64,148.42,148.4,2.4931]
[1718154248241,279.3331,148.46,148.4,2.4932]
[1718154248423,2.4926,148.44,148.4,2.4932]
[1718154248622,7.64,148.43,148.41,2.493]
[1718154249239,7.64,148.43,148.4,2.4931]
[1718154249542,7.64,148.43,148.4,8.8035]
[1718154250149,7.64,148.43,148.41,2.493]
[1718154250328,7.64,148.44,148.42,2.4928]
[1718154250539,7.64,148.45,148.42,2.4928]
[1718154251250,260.9923,148.46,148.42,2.4927]
[1718154251251,258.5,148.46,148.42,2.4927]
[1718154251443,266.14,148.46,148.42,2.4927]
[1718154251644,268.6322,148.46,148.42,2.4927]
[1718154252149,10.1322,148.46,148.42,2.4927]
[1718154252445,2.4924,148.45,148.41,2.493]
[1718154252624,10.1326,148.44,148.4,2.6631]
[1718154252826,2.493,148.42,148.38,18.4564]
[1718154253067,2.4931,148.41,148.38,22.2332]
[1718154253235,10.1331,148.41,148.38,22.2332]
[1718154253730,7.64,148.41,148.38,24.7267]
[1718154254047,12.4616,148.46,148.38,22.2332]
[1718154254262,7.64,148.42,148.39,2.4932]
[1718154255141,7.64,148.42,148.4,2.4932]
[1718154255341,7.64,148.42,148.39,2.4933]
[1718154255839,7.64,148.42,148.4,2.4932]
[1718154256241,7.64,148.42,148.39,2.4933]
[1718154259056,2.4927,148.43,148.39,2.4933]
[1718154259257,2.4926,148.44,148.4,2.4932]
[1718154259438,10.1326,148.44,148.4,2.4932]
[1718154260037,2.4925,148.45,148.41,2.493]
[1718154260238,7.64,148.44,148.41,2.493]
[1718154261466,10.1326,148.44,148.41,2.493]
[1718154261636,10.1326,148.44,148.38,40.9899]
[1718154261637,10.1326,148.44,148.4,2.4931]
[1718154264058,7.64,148.43,148.4,2.4931]
[1718154264561,7.64,148.43,148.37,54.7663]
[1718154264562,7.64,148.41,148.37,2.4936]
[1718154264758,10.1333,148.4,148.36,2.4938]
[1718154265058,7.64,148.39,148.36,2.4938]
[1718154266449,7.64,148.38,148.36,2.4938]
[1718154266773,7.64,148.38,148.35,2.494]
[1718154267072,2.4939,148.36,148.34,15.2797]
[1718154267242,7.64,148.35,148.32,2.4944]
[1718154267562,7.64,148.35,148.31,11.4099]
[1718154267780,7.64,148.35,148.34,2.4942]
[1718154268150,2.4935,148.39,148.35,2.4941]
[1718154268349,7.64,148.36,148.35,2.4941]
[1718154269066,7.64,148.37,148.35,2.4941]
[1718154269454,2.4935,148.39,148.35,2.4941]
[1718154269772,7.64,148.4,148.38,2.4934]
[1718154269971,2.4929,148.42,148.38,2.4934]
[1718154270271,4.9853,148.44,148.37,2.4936]
[1718154270272,7.64,148.4,148.37,2.4936]
[1718154270450,7.64,148.39,148.37,2.4936]
[1718154270651,7.64,148.38,148.33,2.4944]
[1718154270851,7.64,148.37,148.34,2.4941]
[1718154271664,7.64,148.37,148.35,2.494]
[1718154272074,7.64,148.38,148.35,2.494]
[1718154273053,7.64,148.38,148.36,2.4939]
[1718154274079,7.64,148.38,148.35,2.494]
[1718154275073,7.64,148.38,148.36,2.4938]
[1718154275694,2.4933,148.4,148.36,2.4938]
[1718154275984,7.64,148.4,148.38,2.4934]
[1718154277304,7.64,148.4,148.37,2.4936]
[1718154277664,2.4929,148.42,148.39,2.4933]
[1718154277893,7.64,148.42,148.39,2.4933]
[1718154278359,10.1329,148.42,148.39,2.4933]
[1718154278560,2.4928,148.43,148.37,4.9873]
[1718154278789,2.4923,148.46,148.38,75.7907]
[1718154278963,2.4921,148.47,148.43,2.4925]
[1718154279163,7.64,148.46,148.43,2.4925]
[1718154279384,2.4921,148.47,148.43,2.4925]
[1718154279581,7.64,148.46,148.43,2.4925]
[1718154279891,10.1322,148.46,148.43,2.4925]
[1718154280257,10.1322,148.46,148.4,36.612]
[1718154280258,15.4622,148.49,148.4,23.0219]
[1718154280460,10.1327,148.44,148.4,25.515]
[1718154280975,7.64,148.47,148.43,2.4927]
[1718154281290,7.64,148.45,148.42,2.4928]
[1718154281887,10.1322,148.46,148.42,2.4928]
[1718154283780,10.1322,148.46,148.41,6.661]
[1718154283781,7.64,148.46,148.41,6.661]
[1718154283976,2.4921,148.47,148.43,2.4927]
[1718154284177,7.4749,148.5,148.44,2.4925]
[1718154284398,2.4921,148.47,148.43,8.9898]
[1718154285469,9.9677,148.48,148.4,56.9659]
[1718154285667,7.64,148.44,148.41,2.493]
[1718154286092,7.64,148.45,148.42,2.4929]
[1718154286293,7.64,148.45,148.43,2.4927]
[1718154286470,7.64,148.45,148.42,2.4928]
[1718154287101,10.1324,148.45,148.41,2.493]
[1718154287291,2.4924,148.45,148.41,2.493]
[1718154287593,10.1324,148.45,148.41,2.493]
[1718154288193,10.1324,148.45,148.42,2.4928]
[1718154288375,7.64,148.45,148.42,2.4928]
[1718154291197,7.64,148.45,148.43,2.4927]
[1718154292004,14.9502,148.5,148.44,2.4924]
[1718154292178,2.4918,148.49,148.43,11.2681]
[1718154292372,7.64,148.48,148.46,2.4922]
[1718154293102,2.4916,148.5,148.46,2.4922]
[1718154293273,7.64,148.48,148.46,2.4922]
[1718154293474,2.4916,148.5,148.46,2.4922]
[1718154293680,2.4916,148.5,148.46,2.4921]
[1718154293897,7.64,148.49,148.44,18.9077]
[1718154294087,2.4916,148.5,148.46,2.4921]
[1718154294289,7.64,148.49,148.46,2.4921]
[1718154294904,7.64,148.48,148.46,2.4921]
[1718154295819,2.4917,148.5,148.46,2.4921]
[1718154295977,2.4914,148.51,148.47,2.4919]
[1718154296311,10.1314,148.51,148.47,2.4919]
[1718154296804,2.4914,148.51,148.47,2.4919]
[1718154297006,2.4915,148.5,148.47,2.4919]
[1718154297179,10.1315,148.5,148.47,2.4919]
[1718154298192,7.64,148.5,148.47,2.4919]
[1718154298507,10.1314,148.51,148.47,2.4919]
[1718154299579,53.30257155,148.54,148.48,2.4918]
[1718154299797,4.9819,148.54,148.48,2.4918]
[1718154299991,10.1313,148.52,148.49,2.4917]
[1718154300179,7.64,148.52,148.47,7.64]
[1718154300510,7.64,148.48,148.45,2.4923]
[1718154301079,7.64,148.48,148.44,6.1382]
[1718154301288,7.64,148.48,148.46,2.4922]
[1718154302301,7.64,148.49,148.46,2.4922]
[1718154302505,10.1317,148.49,148.46,2.4922]
[1718154302687,7.64,148.49,148.43,11.6995]
[1718154302888,7.64,148.46,148.42,15.595]
[1718154303101,10.1322,148.46,148.43,2.4927]
[1718154303298,7.64,148.46,148.43,2.4927]
[1718154303480,7.64,148.46,148.44,2.4925]
[1718154306084,7.64,148.46,148.43,2.4926]
[1718154306287,7.64,148.44,148.41,2.493]
[1718154306592,7.64,148.43,148.4,2.4931]
[1718154306794,7.64,148.42,148.4,2.4931]
[1718154306987,7.64,148.42,148.39,2.4933]
[1718154307291,7.64,148.42,148.4,2.4932]
[1718154307494,7.64,148.42,148.39,2.4933]
[1718154308616,7.64,148.41,148.39,2.4933]
[1718154308812,7.64,148.41,148.37,6.5659]
[1718154308999,46.666,148.47,148.37,6.5659]
[1718154309000,7.64,148.4,148.38,2.4935]
[1718154309195,7.64,148.4,148.39,2.4934]
[1718154309595,7.64,148.41,148.39,2.4934]
[1718154310297,7.64,148.4,148.38,2.4935]
[1718154311422,7.64,148.39,148.37,2.4936]
[1718154311608,7.64,148.38,148.37,2.4936]
[1718154315511,7.64,148.39,148.38,2.4934]
[1718154316214,5.37681794,148.46,148.36,9.9757]
[1718154316410,7.64,148.42,148.41,2.493]
[1718154316613,2.4924,148.45,148.41,2.493]
[1718154316818,7.64,148.43,148.42,2.4929]
[1718154317528,7.64,148.43,148.41,2.493]
[1718154317727,16.106,148.47,148.44,2.4925]
[1718154317936,7.64,148.45,148.44,2.4925]
[1718154319017,7.64,148.45,148.43,2.4926]
[1718154319715,2.4921,148.47,148.41,4.986]
[1718154319914,7.64,148.46,148.43,2.4926]
[1718154320230,7.64,148.45,148.43,2.4926]
[1718154321315,7.64,148.46,148.44,2.4925]
[1718154321520,2.4919,148.48,148.44,2.4925]
[1718154321727,7.64,148.46,148.44,2.4925]
[1718154322529,7.64,148.46,148.41,20.1051]
[1718154322530,7.64,148.46,148.43,2.4926]
[1718154323155,2.492,148.47,148.43,2.4926]
[1718154323315,7.64,148.46,148.43,2.4926]
[1718154323916,4.0267219,148.49,148.41,14.1017]
[1718154324119,4.0267219,148.49,148.46,2.4921]
[1718154324359,2.4917,148.49,148.46,2.4921]
[1718154324520,7.64,148.48,148.46,2.4921]
[1718154325521,10.1317,148.49,148.46,2.4921]
[1718154326954,10.1317,148.49,148.45,2.4923]
[1718154328075,2.4917,148.49,148.45,2.4923]
[1718154328281,10.1317,148.49,148.46,2.4922]
[1718154328549,10.1315,148.51,148.47,2.492]
[1718154328764,7.64,148.5,148.47,2.492]
[1718154329261,10.1316,148.5,148.47,2.492]
[1718154330349,10.1316,148.5,148.46,2.4921]
[1718154333766,10.1316,148.5,148.47,2.492]
[1718154334646,2.4916,148.5,148.47,2.492]
[1718154335368,2.4915,148.51,148.47,2.492]
[1718154335771,2.4915,148.5,148.47,2.492]
[1718154337075,2.4914,148.51,148.48,2.4918]
[1718154337948,14.9461,148.54,148.48,2.4918]
[1718154338147,10.1314,148.52,148.48,2.4918]
[1718154338552,2.4911,148.53,148.47,6.3961]
[1718154338770,2.4914,148.51,148.47,8.8881]
[1718154338980,10.1314,148.51,148.47,8.8881]
[1718154339683,2.4914,148.51,148.47,8.8881]
[1718154339855,10.1313,148.52,148.48,2.4919]
[1718154340060,2.4914,148.51,148.48,2.4919]
[1718154340261,10.1314,148.51,148.47,8.8881]
[1718154340774,2.4914,148.51,148.47,8.8881]
[1718154341470,10.1313,148.52,148.48,2.4918]
[1718154342449,2.4914,148.51,148.48,2.4918]
[1718154344301,10.1313,148.52,148.48,2.4918]
[1718154345979,0.8418073,148.55,148.51,6.1187]
[1718154346180,0.8418073,148.55,148.52,2.4911]
[1718154346360,10.9726073,148.55,148.51,8.61]
[1718154346761,2.4909,148.54,148.51,8.61]
[1718154347063,2.4909,148.54,148.51,6.1187]
[1718154347668,2.491,148.53,148.49,25.3423]
[1718154347871,2.491,148.53,148.5,0.34]
[1718154348183,2.491,148.53,148.5,2.8315]
[1718154348362,10.131,148.54,148.5,2.8315]
[1718154349084,2.4911,148.53,148.49,31.4382]
[1718154349263,10.1314,148.51,148.47,2.4919]
[1718154349469,7.64,148.5,148.47,2.4919]
[1718154350064,7.64,148.5,148.48,2.4918]
[1718154350264,2.4914,148.51,148.47,2.492]
[1718154350470,10.1314,148.51,148.47,2.492]
[1718154351885,7.64,148.51,148.48,2.4918]
[1718154353989,7.64,148.51,148.49,2.4917]
[1718154354892,2.491,148.54,148.5,2.4915]
[1718154355084,7.64,148.51,148.5,2.4915]
[1718154356095,2.4916,148.5,148.46,2.4921]
[1718154356273,7.64,148.48,148.47,2.492]
[1718154357383,7.64,148.49,148.48,2.4918]
[1718154357782,7.64,148.51,148.49,2.4917]
[1718154358788,7.64,148.5,148.45,15.8407]
[1718154359098,7.64,148.49,148.47,2.492]
[1718154360284,2.4918,148.49,148.45,2.4923]
[1718154360476,7.64,148.47,148.45,2.4923]
[1718154361302,2.4914,148.51,148.47,2.492]
[1718154361612,7.64,148.48,148.47,2.492]
[1718154361803,7.64,148.49,148.47,2.492]
[1718154362291,4.9823,148.53,148.47,2.492]
[1718154362292,7.64,148.48,148.47,2.492]
[1718154364098,7.64,148.48,148.42,64.78860974]
[1718154364287,7.64,148.45,148.43,2.4926]
[1718154364498,7.64,148.44,148.43,2.4926]
[1718154364813,7.64,148.45,148.43,2.4926]
[1718154365391,7.64,148.45,148.42,2.4928]
[1718154366707,7.64,148.45,148.38,46.5867]
[1718154366708,2.493,148.42,148.38,8.6202]
[1718154366914,7.64,148.41,148.39,2.4933]
[1718154367290,2.4928,148.43,148.39,2.4933]
[1718154367291,7.64,148.4,148.39,2.4933]
[1718154368619,7.64,148.4,148.38,2.4935]
[1718154368914,7.64,148.39,148.38,2.4935]
[1718154369905,7.64,148.4,148.39,2.4933]
[1718154370925,7.64,148.41,148.39,2.4933]
[1718154372406,7.64,148.41,148.4,2.4932]
[1718154372609,8.6934,148.46,148.42,2.4928]
[1718154372821,7.64,148.43,148.42,2.4928]
[1718154374211,7.64,148.43,148.41,2.493]
[1718154375428,7.64,148.43,148.4,2.4931]
[1718154375807,7.64,148.42,148.39,2.4933]
[1718154376009,7.64,148.41,148.38,2.4935]
[1718154376235,7.64,148.39,148.36,2.4939]
[1718154376526,7.64,148.38,148.35,2.494]